bitfinex/quotes_SOLUSD_20250308
["timestamp","ask_amount","ask_price","bid_price","bid_amount"]
[1741396255296,174.1044769,140.92,140.86,13.2811769]
[1741396255496,13.2481769,140.91,140.86,0.033]
[1741396256391,191.8449769,140.92,140.86,13.2811769]
[1741396256585,191.8449769,140.92,140.87,13.2481769]
[1741396256586,160.8563,140.92,140.87,13.2481769]
[1741396256896,153.76,140.92,140.88,13.2481769]
[1741396257097,153.76,140.92,140.89,20.3457769]
[1741396257303,153.76,140.92,140.89,13.2481769]
[1741396257503,160.8562,140.92,140.88,13.2481769]
[1741396257704,13.2481769,140.91,140.86,0.033]
[1741396258019,13.2481769,140.9,140.86,0.033]
[1741396259295,13.2481769,140.87,140.86,0.033]
[1741396259699,82.3,140.89,140.86,0.033]
[1741396259889,13.2481769,140.88,140.86,0.033]
[1741396260090,82.3,140.87,140.82,0.033]
[1741396260297,13.2481769,140.84,140.82,0.033]
[1741396260700,82.3,140.86,140.82,0.033]
[1741396260898,13.2481769,140.85,140.82,0.033]
[1741396261214,82.3,140.86,140.82,0.033]
[1741396261420,20.7170999,140.84,140.82,0.033]
[1741396261595,27.8167999,140.85,140.82,0.033]
[1741396262413,20.7170999,140.83,140.82,0.033]
[1741396263325,24.8543,140.82,140.71,1.5432]
[1741396263521,20.7170999,140.79,140.71,1.5432]
[1741396263721,20.7170999,140.77,140.71,22.2602999]
[1741396263927,20.7170999,140.74,140.71,0.033]
[1741396264328,103.0170999,140.75,140.71,0.033]
[1741396265228,6.34,140.77,140.71,0.033]
[1741396265229,20.7170999,140.72,140.71,0.033]
[1741396265726,27.8233999,140.72,140.71,0.033]
[1741396266223,20.7170999,140.72,140.71,0.033]
[1741396267326,27.0570999,140.72,140.71,0.033]
[1741396267507,34.1633999,140.72,140.71,0.033]
[1741396267709,84.1633999,140.72,140.71,0.033]
[1741396268614,27.0570999,140.72,140.71,0.033]
[1741396269009,82.3,140.77,140.71,0.033]
[1741396269204,20.7170999,140.74,140.71,0.033]
[1741396269517,20.7170999,140.73,140.71,0.033]
[1741396269937,20.7170999,140.72,140.71,0.033]
[1741396270426,70.7170999,140.72,140.71,0.033]
[1741396270740,77.8233999,140.72,140.71,0.033]
[1741396272124,20.7170999,140.72,140.71,0.033]
[1741396272625,57.1043,140.76,140.71,0.033]
[1741396272822,20.7170999,140.76,140.71,0.033]
[1741396273134,20.7170999,140.75,140.71,0.033]
[1741396273321,20.7170999,140.76,140.71,0.033]
[1741396273522,20.7170999,140.77,140.71,20.7500999]
[1741396274222,20.7170999,140.75,140.71,0.033]
[1741396274551,20.7170999,140.74,140.71,0.033]
[1741396274749,27.8223999,140.74,140.71,0.033]
[1741396275121,7.1053,140.74,140.71,0.033]
[1741396275621,20.7170999,140.75,140.71,0.033]
[1741396275842,27.8219999,140.75,140.71,0.033]
[1741396276245,20.7170999,140.74,140.71,0.033]
[1741396276752,20.7170999,140.72,140.71,0.033]
[1741396276920,82.3,140.73,140.71,0.033]
[1741396278040,20.7170999,140.72,140.71,0.033]
[1741396278443,110.1229999,140.73,140.71,0.033]
[1741396278940,7.1063,140.72,140.71,0.033]
[1741396279246,110.1228999,140.73,140.71,0.033]
[1741396279933,82.3,140.73,140.71,0.033]
[1741396283230,7.1053,140.74,140.71,0.033]
[1741396283833,20.7170999,140.73,140.71,0.033]
[1741396284039,20.7170999,140.72,140.71,0.033]
[1741396284425,20.7170999,140.73,140.71,0.033]
[1741396285240,7.1063,140.72,140.71,0.033]
[1741396286140,20.7170999,140.74,140.71,0.033]
[1741396286449,20.7170999,140.75,140.71,0.033]
[1741396286839,20.7170999,140.74,140.71,0.033]
[1741396287664,7.1058,140.73,140.71,0.033]
[1741396288826,27.8228999,140.73,140.71,0.033]
[1741396289231,110.1228999,140.73,140.71,0.033]
[1741396289634,89.4058,140.73,140.71,0.033]
[1741396289834,110.1228999,140.73,140.71,0.033]
[1741396290530,89.4058,140.73,140.71,0.033]
[1741396291138,110.1228999,140.73,140.71,0.033]
[1741396291340,20.7170999,140.72,140.71,0.033]
[1741396291538,27.8233999,140.72,140.71,0.033]
[1741396292741,7.1063,140.72,140.71,0.033]
[1741396295645,89.4059,140.73,140.71,0.033]
[1741396296648,110.1229999,140.73,140.71,0.033]
[1741396299546,20.7170999,140.72,140.71,0.033]
[1741396300045,70.7170999,140.72,140.71,0.0001]
[1741396300255,50.0,140.7,140.68,0.0001]
[1741396300455,103.0170999,140.69,140.68,0.0001]
[1741396301437,27.8248999,140.69,140.68,0.0001]
[1741396302243,50.0,140.67,140.66,5.2e-05]
[1741396302563,77.0570999,140.67,140.66,5.2e-05]
[1741396303440,84.1658999,140.67,140.66,5.2e-05]
[1741396303645,50.0,140.65,140.59,1.5164]
[1741396303845,20.7170999,140.62,140.59,1.5164]
[1741396304553,20.7170999,140.64,140.59,1.5164]
[1741396305348,27.8275999,140.64,140.59,1.5164]
[1741396307269,27.8280999,140.63,140.59,1.5164]
[1741396308967,27.8280999,140.63,140.59,1.5494]
[1741396309154,27.8288999,140.61,140.59,0.033]
[1741396310350,20.7170999,140.6,140.59,0.033]
[1741396310671,27.8288999,140.61,140.59,0.033]
[1741396310872,88.64,140.62,140.59,0.033]
[1741396311247,116.4685999,140.62,140.59,0.033]
[1741396312268,20.7170999,140.61,140.59,0.033]
[1741396312761,116.4685999,140.62,140.59,0.033]
[1741396313456,95.7515,140.62,140.59,0.033]
[1741396313654,89.4115,140.62,140.59,0.033]
[1741396315672,82.3,140.62,140.59,0.033]
[1741396316064,89.4114,140.62,140.59,0.033]
[1741396316681,110.1284999,140.62,140.59,0.033]
[1741396317270,89.4114,140.62,140.59,0.033]
[1741396317779,110.1284999,140.62,140.59,0.033]
[1741396318283,89.4114,140.62,140.59,0.033]
[1741396318882,110.1284999,140.62,140.59,0.033]
[1741396319881,20.7170999,140.61,140.59,0.033]
[1741396320482,27.8293999,140.6,140.59,0.033]
[1741396322363,33.56389797,140.6,140.59,0.033]
[1741396322570,27.8293999,140.6,140.59,0.033]
[1741396323084,27.8293999,140.6,140.51,1.6617]
[1741396323085,50.0,140.59,140.51,22.3787999]
[1741396323387,20.7170999,140.57,140.51,22.3787999]
[1741396323787,20.7170999,140.57,140.52,20.7170999]
[1741396324086,20.7170999,140.57,140.51,22.3787999]
[1741396324484,7.1143,140.56,140.52,20.7170999]
[1741396324680,7.1133,140.58,140.53,20.7170999]
[1741396325186,20.7170999,140.57,140.52,20.7170999]
[1741396326594,27.8310999,140.57,140.52,20.7170999]
[1741396327467,27.8310999,140.57,140.52,27.8333999]
[1741396327690,27.8310999,140.57,140.52,20.7170999]
[1741396328071,7.114,140.57,140.51,1.6617]
[1741396328268,27.8310999,140.57,140.52,20.7170999]
[1741396328788,45.6157999,140.57,140.51,22.3787999]
[1741396329093,20.7170999,140.55,140.51,1.6617]
[1741396329977,20.7170999,140.55,140.49,27.1895999]
[1741396330179,82.3,140.54,140.47,1.5909]
[1741396330382,7.1189,140.47,140.43,22.3079999]
[1741396330572,27.8359999,140.47,140.43,1.5909]
[1741396330970,20.7170999,140.46,140.38,3.619152]
[1741396331179,20.7170999,140.44,140.38,3.619152]
[1741396331471,132.3,140.43,140.38,2.028252]
[1741396331671,20.7170999,140.4,140.38,2.028252]
[1741396331873,20.7170999,140.39,140.38,2.028252]
[1741396332276,20.7170999,140.39,140.38,5.2e-05]
[1741396332479,84.3345999,140.39,140.38,5.2e-05]
[1741396332869,20.7170999,140.4,140.38,5.2e-05]
[1741396333075,20.7170999,140.42,140.38,5.2e-05]
[1741396333284,20.7170999,140.41,140.38,5.2e-05]
[1741396333496,20.7170999,140.41,140.35,20.7170999]
[1741396333803,20.7170999,140.4,140.34,20.7170999]
[1741396334178,20.7170999,140.41,140.35,20.7170999]
[1741396334378,20.7170999,140.4,140.35,20.7170999]
[1741396334784,20.7170999,140.4,140.34,20.7170999]
[1741396335294,20.7170999,140.39,140.34,20.7170999]
[1741396335675,20.7170999,140.41,140.31,13.4868]
[1741396335874,20.7170999,140.41,140.35,20.7170999]
[1741396336783,82.3,140.41,140.37,20.7170999]
[1741396336980,82.3,140.41,140.38,20.7170999]
[1741396337278,103.0170999,140.43,140.38,20.7170999]
[1741396337480,20.7170999,140.42,140.37,20.7170999]
[1741396337883,82.3,140.43,140.38,20.7170999]
[1741396338289,82.3,140.43,140.39,20.7170999]
[1741396338497,286.42,140.46,140.39,20.7170999]
[1741396338692,103.0170999,140.45,140.39,20.7170999]
[1741396339200,103.0170999,140.45,140.4,20.7170999]
[1741396339495,82.3,140.45,140.42,20.7170999]
[1741396339807,82.3,140.45,140.41,20.7170999]
[1741396340099,154.12,140.46,140.42,20.7170999]
[1741396340777,154.12,140.46,140.42,27.8384999]
[1741396341802,154.12,140.46,140.43,20.7170999]
[1741396342792,154.12,140.46,140.43,27.8379999]
[1741396343702,154.12,140.46,140.42,7.1213]
[1741396343915,154.12,140.46,140.42,27.8383999]
[1741396344404,154.12,140.46,140.42,7.1213]
[1741396344594,154.12,140.46,140.45,27.8369999]
[1741396344905,82.3,140.5,140.45,27.8369999]
[1741396345199,0.03,140.46,140.45,7.1199]
[1741396345395,0.03,140.46,140.45,27.8369999]
[1741396345799,82.3,140.5,140.45,45.6368999]
[1741396346000,82.3,140.5,140.48,20.7170999]
[1741396346379,82.3,140.5,140.47,20.7170999]
[1741396346796,82.3,140.5,140.48,7.1184]
[1741396347101,257.2570999,140.54,140.49,20.7170999]
[1741396347479,236.54,140.54,140.49,20.7170999]
[1741396347899,236.54,140.54,140.5,20.7170999]
[1741396348399,236.04,140.54,140.5,20.7170999]
[1741396348803,256.7570999,140.54,140.48,26.4853]
[1741396349009,256.7570999,140.54,140.49,20.7170999]
[1741396349582,236.04,140.54,140.49,20.7170999]
[1741396349906,236.04,140.54,140.48,26.4853]
[1741396350106,256.7570999,140.54,140.5,7.1174]
[1741396350493,236.04,140.54,140.5,7.1174]
[1741396351409,256.7570999,140.54,140.48,29.4061999]
[1741396351707,20.7170999,140.53,140.48,8.6891]
[1741396352204,20.7170999,140.53,140.48,29.4061999]
[1741396352508,256.7570999,140.54,140.48,29.4061999]
[1741396352714,256.7570999,140.54,140.49,20.7170999]
[1741396353201,236.04,140.54,140.5,20.7170999]
[1741396353409,236.04,140.54,140.51,7.1169]
[1741396353785,153.74,140.54,140.51,27.8339999]
[1741396353981,153.74,140.54,140.53,20.7170999]
[1741396354209,153.74,140.54,140.51,20.7170999]
[1741396354724,153.74,140.54,140.52,20.7170999]
[1741396355602,153.74,140.54,140.5,20.7170999]
[1741396356403,153.74,140.54,140.51,20.7170999]
[1741396356595,153.74,140.54,140.52,20.7170999]
[1741396356795,153.74,140.54,140.51,20.7170999]
[1741396357399,0.03,140.56,140.53,20.7170999]
[1741396357709,0.03,140.54,140.52,20.7170999]
[1741396357892,0.03,140.54,140.51,20.7170999]
[1741396360897,0.03,140.54,140.53,20.7170999]
[1741396361101,0.03,140.54,140.53,27.8329999]
[1741396364007,0.03,140.56,140.53,45.6226999]
[1741396364206,0.03,140.6,140.55,41.4341998]
[1741396364421,0.03,140.6,140.59,20.7170999]
[1741396364718,0.03,140.6,140.59,27.0770999]
[1741396365425,0.03,140.6,140.59,34.1898999]
[1741396365802,0.0001,140.6,140.59,34.1898999]
[1741396366709,0.03,140.66,140.59,51.9720999]
[1741396366903,0.03,140.66,140.65,20.7170999]
[1741396370726,0.03,140.66,140.64,7.1101]
[1741396370938,0.03,140.66,140.65,20.7170999]
[1741396374837,0.03,140.66,140.65,27.8268999]
[1741396375021,0.03,140.66,140.65,34.3583999]
[1741396376215,0.03,140.69,140.65,186.7329999]
[1741396376546,0.03,140.69,140.68,20.7170999]
[1741396377313,0.03,140.69,140.67,20.7170999]
[1741396377519,0.03,140.69,140.66,20.7170999]
[1741396380321,20.7470999,140.69,140.64,20.7170999]
[1741396380529,20.7470999,140.69,140.63,22.3010999]
[1741396381548,20.7170999,140.67,140.62,20.7170999]
[1741396381729,20.7170999,140.66,140.6,20.7170999]
[1741396382234,20.7170999,140.67,140.61,20.7170999]
[1741396382426,7.1093,140.66,140.61,20.7170999]
[1741396382841,7.1093,140.66,140.61,27.8287999]
[1741396383021,7.1093,140.66,140.62,20.7170999]
[1741396383639,7.1089,140.67,140.62,20.7170999]
[1741396383843,7.1089,140.67,140.63,20.7170999]
[1741396385346,7.1089,140.67,140.62,20.7170999]
[1741396387849,89.4379,140.69,140.64,20.7170999]
[1741396388148,89.4379,140.69,140.65,20.7170999]
[1741396388149,82.33,140.69,140.65,20.7170999]
[1741396388735,0.03,140.69,140.66,20.7170999]
[1741396389043,0.03,140.69,140.68,20.7170999]
[1741396391149,0.03,140.69,140.68,27.8253999]
[1741396392038,0.03,140.69,140.68,20.7170999]
[1741396392221,0.03,140.69,140.67,20.7170999]
[1741396392427,0.03,140.69,140.66,6.34]
[1741396392651,20.7470999,140.69,140.64,20.7170999]
[1741396392973,27.8253999,140.68,140.62,6.34]
[1741396393127,20.7170999,140.67,140.62,6.34]
[1741396393748,20.7170999,140.67,140.62,27.0570999]
[1741396393947,20.7170999,140.67,140.62,6.34]
[1741396394142,20.7170999,140.67,140.62,27.0570999]
[1741396394336,27.8253999,140.68,140.62,27.0570999]
[1741396394948,27.8253999,140.68,140.59,0.033]
[1741396394949,20.7170999,140.65,140.63,0.033]
[1741396395256,20.7170999,140.64,140.63,0.033]
[1741396396851,27.8273999,140.64,140.63,0.033]
[1741396397070,34.2161999,140.64,140.63,0.033]
[1741396397757,42.1917999,140.64,140.63,0.033]
[1741396398334,92.1917999,140.64,140.63,0.033]
[1741396398733,42.1917999,140.64,140.63,0.033]
[1741396400230,40.5561999,140.64,140.63,0.033]
[1741396400428,6.3888,140.64,140.63,0.033]
[1741396400632,27.8269999,140.65,140.63,0.033]
[1741396400858,20.7170999,140.64,140.63,0.033]
[1741396402052,27.8273999,140.64,140.63,0.033]
[1741396404461,7.1103,140.64,140.63,0.033]
[1741396404833,237.9623,140.67,140.63,0.033]
[1741396405038,265.7882999,140.67,140.63,0.033]
[1741396405239,20.7170999,140.65,140.63,0.033]
[1741396406666,7.1103,140.64,140.63,0.033]
[1741396407561,27.8273999,140.64,140.63,0.033]
[1741396408767,7.1103,140.64,140.63,0.033]
[1741396409654,7.11,140.65,140.63,0.033]
[1741396410249,0.03,140.66,140.64,20.7170999]
[1741396410644,0.03,140.66,140.63,20.7500999]
[1741396412059,0.03,140.66,140.63,27.8606999]
[1741396412257,0.03,140.66,140.63,20.7500999]
[1741396412779,0.03,140.66,140.63,0.033]
[1741396413164,20.7170999,140.65,140.63,0.033]
[1741396413474,20.7170999,140.64,140.63,0.033]
[1741396413660,20.7470999,140.66,140.63,0.033]
[1741396414172,7.1098,140.65,140.63,0.033]
[1741396416671,7.1395,140.66,140.63,0.033]
[1741396417345,0.03,140.66,140.63,20.7500999]
[1741396418577,0.03,140.66,140.63,0.033]
[1741396421075,20.7470999,140.66,140.63,0.033]
[1741396421282,20.7170999,140.64,140.63,0.033]
[1741396421586,27.8273999,140.64,140.63,0.033]
[1741396421950,45.6031999,140.64,140.59,0.033]
[1741396422263,103.0170999,140.63,140.59,0.033]
[1741396422473,20.7170999,140.6,140.59,0.033]
[1741396423271,70.7170999,140.6,140.59,0.033]
[1741396423465,77.2305999,140.6,140.59,0.033]
[1741396423652,84.3428999,140.6,140.59,0.033]
[1741396424077,50.0,140.58,140.5,0.033]
[1741396424382,20.7170999,140.54,140.5,0.033]
[1741396424678,20.7170999,140.55,140.5,0.033]
[1741396425152,20.7170999,140.54,140.5,0.033]
[1741396425473,88.64,140.57,140.5,0.033]
[1741396425474,20.7170999,140.53,140.5,0.033]
[1741396425660,20.7170999,140.54,140.5,0.033]
[1741396425862,20.7170999,140.53,140.5,0.033]
[1741396426585,20.7170999,140.52,140.5,0.033]
[1741396427566,20.7170999,140.53,140.5,0.033]
[1741396427757,20.7170999,140.52,140.5,0.033]
[1741396427969,20.7170999,140.51,140.5,0.033]
[1741396428170,82.3,140.52,140.5,0.033]
[1741396428488,103.0170999,140.52,140.5,0.033]
[1741396428692,82.3,140.52,140.5,0.033]
[1741396428891,103.0170999,140.52,140.5,0.033]
[1741396430300,257.0970999,140.55,140.5,0.033]
[1741396430476,236.38,140.55,140.5,20.7500999]
[1741396430680,257.0970999,140.55,140.5,20.7500999]
[1741396431291,236.38,140.55,140.5,20.7500999]
[1741396431496,236.38,140.55,140.5,0.033]
[1741396431695,236.38,140.55,140.52,20.7170999]
[1741396431696,154.08,140.55,140.52,20.7170999]
[1741396431899,154.08,140.55,140.53,20.7170999]
[1741396432072,103.0170999,140.59,140.53,20.7170999]
[1741396432273,82.3,140.59,140.55,20.7170999]
[1741396432679,20.7170999,140.62,140.56,20.7170999]
[1741396432875,268.27063488,140.63,140.58,20.7170999]
[1741396433403,280.80172721,140.63,140.58,33.24819223]
[1741396433700,247.55353498,140.63,140.59,33.24819223]
[1741396433904,236.44,140.63,140.59,33.24819223]
[1741396434282,236.44,140.63,140.6,7.1123]
[1741396434483,236.44,140.63,140.6,40.36049223]
[1741396435397,154.14,140.63,140.55,17.7864]
[1741396435583,187.38819223,140.63,140.54,7.1154]
[1741396435783,33.24819223,140.62,140.56,33.24819223]
[1741396435984,33.24819223,140.59,140.53,46.70389223]
[1741396436191,33.24819223,140.6,140.55,33.24819223]
[1741396436386,82.3,140.61,140.55,33.24819223]
[1741396436707,33.24819223,140.61,140.56,33.24819223]
[1741396437081,193.72819223,140.63,140.57,33.24819223]
[1741396437376,154.14,140.63,140.6,33.24819223]
[1741396437983,154.14,140.63,140.59,33.24819223]
[1741396439792,154.14,140.63,140.6,33.24819223]
[1741396440303,154.14,140.63,140.61,33.24819223]
[1741396441500,154.17,140.63,140.61,33.24819223]
[1741396444701,154.17,140.63,140.6,40.36009223]
[1741396446189,154.17,140.63,140.6,33.24819223]
[1741396447207,154.17,140.63,140.6,40.36039223]
[1741396447406,0.03,140.63,140.62,33.24819223]
[1741396447601,0.03,140.63,140.61,33.24819223]
[1741396447813,7.1409,140.63,140.59,33.24819223]
[1741396447991,7.1409,140.63,140.58,41.11849223]
[1741396448190,0.03,140.63,140.59,33.24819223]
[1741396449027,33.24819223,140.61,140.56,33.24819223]
[1741396449308,33.24819223,140.59,140.53,33.24819223]
[1741396450015,33.24819223,140.58,140.53,33.24819223]
[1741396450195,33.24819223,140.58,140.52,33.24819223]
[1741396451297,40.36119223,140.59,140.53,33.24819223]
[1741396451910,80.2937,140.61,140.55,33.24819223]
[1741396451911,12.5134,140.61,140.55,33.24819223]
[1741396452218,45.76159223,140.61,140.55,33.24819223]
[1741396452912,82.3,140.62,140.57,33.24819223]
[1741396453213,82.3,140.62,140.58,40.36149223]
[1741396453414,82.3,140.62,140.59,0.033]
[1741396453791,122.65979223,140.62,140.59,0.033]
[1741396454293,89.4116,140.62,140.59,0.033]
[1741396455198,82.3,140.62,140.59,0.033]
[1741396455611,89.4113,140.62,140.59,0.033]
[1741396455800,82.3,140.62,140.59,0.033]
[1741396456202,82.3,140.62,140.6,33.24819223]
[1741396456403,0.03,140.63,140.6,33.24819223]
[1741396457694,0.03,140.63,140.61,33.24819223]
[1741396458390,0.03,140.63,140.6,33.24819223]
[1741396459291,0.03,140.63,140.6,20.77205597]
[1741396460519,0.03,140.63,140.59,0.033]
[1741396462199,0.03,140.63,140.6,20.77205597]
[1741396462401,0.03,140.63,140.62,20.77205597]
[1741396465322,0.03,140.63,140.62,33.22878144]
[1741396465495,0.03,140.63,140.59,0.033]
[1741396465902,33.22878144,140.62,140.59,0.033]
[1741396466998,0.03,140.63,140.59,0.033]
[1741396467201,7.1409,140.63,140.59,0.033]
[1741396467402,33.22878144,140.62,140.59,0.033]
[1741396469007,7.1118,140.61,140.59,0.033]
[1741396469632,7.1115,140.62,140.59,0.033]
[1741396470633,40.34028144,140.62,140.59,0.033]
[1741396471423,7.1115,140.62,140.59,0.033]
[1741396471631,0.03,140.63,140.61,33.22878144]
[1741396472011,0.03,140.63,140.59,0.033]
[1741396472235,40.36968144,140.63,140.59,0.033]
[1741396474328,33.22878144,140.62,140.59,0.033]
[1741396474633,40.36968144,140.63,140.59,0.033]
[1741396475631,58.14678144,140.63,140.59,0.033]
[1741396476207,0.03,140.62,140.59,0.033]
[1741396477532,33.25878144,140.62,140.59,0.033]
[1741396479343,40.34058144,140.61,140.59,0.033]
[1741396479520,33.22878144,140.6,140.59,0.033]
[1741396480839,115.52878144,140.6,140.59,0.033]
[1741396481043,50.0,140.59,140.51,34.85048144]
[1741396481220,33.22878144,140.57,140.51,34.85048144]
[1741396481420,7.1143,140.56,140.51,34.85048144]
[1741396481740,7.1143,140.56,140.51,33.22878144]
[1741396483161,8.6221,140.58,140.53,33.22878144]
[1741396483553,41.85088144,140.58,140.52,33.22878144]
[1741396484240,59.63428144,140.58,140.52,33.22878144]
[1741396484445,33.22878144,140.57,140.51,33.22878144]
[1741396484756,7.1143,140.56,140.51,33.22878144]
[1741396485127,40.34308144,140.56,140.5,33.26178144]
[1741396485323,20.80331042,140.55,140.5,0.033]
[1741396486446,27.91761042,140.56,140.5,0.033]
[1741396486651,20.80331042,140.55,140.5,0.033]
[1741396487353,7.1154,140.54,140.5,0.033]
[1741396487553,7.1154,140.54,140.5,20.83631042]
[1741396488555,7.1149,140.55,140.5,20.83631042]
[1741396489337,27.91821042,140.55,140.5,0.033]
[1741396490352,7.1149,140.55,140.5,20.83631042]
[1741396490533,7.1149,140.55,140.5,27.95361042]
[1741396490734,7.1149,140.55,140.5,20.83631042]
[1741396491551,7.1149,140.55,140.5,27.95361042]
[1741396491751,7.1149,140.55,140.35,10.81584503]
[1741396491752,50.0,140.43,140.35,10.81584503]
[1741396492051,20.80331042,140.38,140.35,10.81584503]
[1741396492645,6.72,140.39,140.35,10.81584503]
[1741396492849,7.1224,140.41,140.35,31.61915545]
[1741396493241,20.80331042,140.4,140.35,10.81584503]
[1741396493664,20.80331042,140.39,140.35,10.81584503]
[1741396493852,50.0,140.41,140.35,0.033]
[1741396494161,20.80331042,140.39,140.35,0.033]
[1741396495460,33.36700422,140.38,140.35,0.033]
[1741396495841,33.36700422,140.39,140.35,0.033]
[1741396496463,33.36700422,140.38,140.35,0.033]
[1741396497363,33.36700422,140.39,140.35,0.033]
[1741396497940,33.36700422,140.38,140.35,0.033]
[1741396499347,33.36700422,140.37,140.35,0.033]
[1741396499662,33.36700422,140.36,140.35,0.033]
[1741396500666,132.3,140.35,140.22,1.5439]
[1741396500844,115.66700422,140.34,140.28,33.36700422]
[1741396501253,115.66700422,140.34,140.22,157.04221683]
[1741396501254,33.36700422,140.33,140.27,33.36700422]
[1741396501754,33.36700422,140.32,140.26,33.36700422]
[1741396502748,33.36700422,140.28,140.22,1.5439]
[1741396502961,33.36700422,140.28,140.22,34.91090422]
[1741396503163,33.36700422,140.28,140.22,34.41090422]
[1741396503468,33.36700422,140.28,140.22,33.91090422]
[1741396503973,33.36700422,140.29,140.23,33.36700422]
[1741396504157,115.66700422,140.31,140.25,33.36700422]
[1741396504345,82.3,140.31,140.26,33.36700422]
[1741396505060,82.3,140.36,140.3,33.36700422]
[1741396505267,39.94670422,140.37,140.31,33.36700422]
[1741396506468,33.36700422,140.38,140.32,33.36700422]
[1741396506849,33.36700422,140.38,140.3,6.72]
[1741396506850,33.36700422,140.37,140.31,33.36700422]
[1741396507472,33.36700422,140.37,140.31,40.49400422]
[1741396507772,33.36700422,140.36,140.31,40.49400422]
[1741396507948,82.3,140.39,140.32,33.36700422]
[1741396508154,33.36700422,140.38,140.32,33.36700422]
[1741396508756,33.36700422,140.37,140.32,33.36700422]
[1741396509152,115.66700422,140.39,140.33,33.36700422]
[1741396509352,33.36700422,140.38,140.32,40.49300422]
[1741396510569,82.3,140.39,140.3,41.61710422]
[1741396510570,33.36700422,140.36,140.3,41.61710422]
[1741396510868,33.36700422,140.36,140.3,40.49440422]
[1741396511174,33.36700422,140.36,140.3,7.1274]
[1741396511374,33.36700422,140.36,140.3,33.36700422]
[1741396511551,33.36700422,140.37,140.31,33.36700422]
[1741396511949,33.36700422,140.38,140.32,33.36700422]
[1741396512169,115.66700422,140.39,140.33,33.36700422]
[1741396512344,0.03,140.38,140.33,33.36700422]
[1741396512958,0.03,140.38,140.35,33.36700422]
[1741396513472,0.03,140.38,140.35,7.1245]
[1741396513782,0.03,140.38,140.35,40.49150422]
[1741396513960,0.03,140.38,140.34,7.1253]
[1741396515373,33.39700422,140.38,140.33,13.8258]
[1741396516152,0.03,140.38,140.33,47.19280422]
[1741396516772,0.03,140.38,140.33,65.00790422]
[1741396518682,0.03,140.38,140.35,33.36700422]
[1741396519562,88.9603,140.43,140.37,33.36700422]
[1741396519563,82.3,140.43,140.37,33.36700422]
[1741396519877,1.652,140.45,140.39,33.36700422]
[1741396519878,33.36700422,140.44,140.39,33.36700422]
[1741396520686,33.36700422,140.44,140.38,33.36700422]
[1741396521195,1.652,140.45,140.38,33.36700422]
[1741396521485,35.01900422,140.45,140.38,33.36700422]
[1741396521787,33.36700422,140.44,140.38,33.36700422]
[1741396521984,1.652,140.45,140.39,40.49000422]
[1741396522186,35.01900422,140.45,140.39,33.36700422]
[1741396522484,33.36700422,140.44,140.38,40.49030422]
[1741396522865,33.36700422,140.44,140.39,33.36700422]
[1741396524483,33.36700422,140.45,140.39,40.48980422]
[1741396524686,146.0792,140.47,140.37,6.66]
[1741396524899,33.36700422,140.41,140.34,20.123]
[1741396525086,33.36700422,140.41,140.35,33.36700422]
[1741396525286,33.36700422,140.42,140.36,33.36700422]
[1741396525589,33.36700422,140.42,140.36,40.49130422]
[1741396525888,33.36700422,140.43,140.37,33.36700422]
[1741396526084,115.66700422,140.45,140.39,33.36700422]
[1741396527390,115.66700422,140.45,140.38,33.36700422]
[1741396527391,33.36700422,140.44,140.38,33.36700422]
[1741396527699,40.48740422,140.44,140.38,33.36700422]
[1741396527870,33.36700422,140.44,140.38,33.36700422]
[1741396528291,40.48760422,140.44,140.38,33.36700422]
[1741396528481,89.4201,140.45,140.39,33.36700422]
[1741396528678,115.66700422,140.45,140.39,33.36700422]
[1741396529389,122.78710422,140.45,140.39,33.36700422]
[1741396530072,89.4201,140.45,140.39,33.36700422]
[1741396530273,122.78710422,140.45,140.39,33.36700422]